Cogmind - Beta 9.1 @@@ ROGUE MODE // 2019.11.12 @ 03:18:16 Player: Finestep Result: Self-destructed Performance ------------- Evolutions (8) 4000 Regions Visited (15) 3000 Robots Destroyed (243) 1215 Value Destroyed (7399) 7399 Prototype IDs (52) 1040 Alien Tech Used (0) 0 Bonus (1913) 1913 TOTAL SCORE: 18567 Bonus ------- High Alert Combat Kills 713 Follower Combat Kills 1363 Aligned with FarCom 300 Built Enhanced Grunts 300 Friendly Fire -763 Cogmind --------- Core Integrity 1056/1450 Matter 152/300 Energy 715/760 System Corruption 4% Temperature Cool (0) Location -2/Research Parts ------- Power (2) Light Antimatter Reactor Light Quantum Reactor Propulsion (5) Utility (14) Large Storage Unit Energy Well Advanced Signal Interpreter Advanced Melee Analysis Suite Improved Armor Integrity Analyzer Hacking Suite Hacking Suite Improved System Shield Weapon (2) Heavy Neutron Cannon Inventory (10) Long-range Terrain Scanner Advanced ECM Suite Drone Bay (2/2) HERF Cannon Proton Burst Cannon Proton Burst Cannon Heavy Missile Launcher Peak State ------------ Power Micro Fission Core Propulsion Antigrav System Improved Cesium-ion Thruster Biomechanical Wings Impulse Thruster Q-thruster Utility Large Storage Unit Energy Well Advanced Signal Interpreter Advanced Melee Analysis Suite Improved Armor Integrity Analyzer Advanced Transmission Jammer EM Shield Improved Force Field Hacking Suite Hacking Suite Improved Hacking Suite Improved System Shield Improved System Shield Weapon Power Sword Power Sword Inventory Light Antimatter Reactor Advanced Medium Treads Long-range Terrain Scanner Advanced ECM Suite Centrium Medium Armor Plating Drone Bay Proton Burst Cannon Proton Burst Cannon Heavy Missile Launcher [Rating: 112] Favorites ----------- Power Light Nuclear Core Engine Improved Ion Engine Power Core Light Nuclear Core Reactor Particle Reactor Propulsion Light Treads Treads Light Treads Leg Improved Titanium Leg Wheel Compact Wheel Hover Unit Antigrav System Flight Unit Improved Cesium-ion Thruster Utility High-capacity Storage Unit Device System Backup Module Storage High-capacity Storage Unit Processor Advanced Signal Interpreter Hackware Improved Hacking Suite Protection Improved Light Armor Plating Weapon Light Assault Rifle Energy Gun Precision Beam Rifle Energy Cannon HERF Cannon Ballistic Gun Light Assault Rifle Ballistic Cannon Advanced Assault Cannon Launcher Rocket Launcher Slashing Weapon Katana Special Melee Weapon Advanced Datajack Build | -11 -10 -10 -10 -9 -8 -7 -6 -6 -6 -6 -6 -5 -4 -3 -2 ------- Run | Scr Mat Min Exi Min Mat Fac Fac Ext Cet Arc Hub Fac Fac Res Res Slots Evolved 16 | . . . . . 4 2 2 . . . . 2 2 2 2 Power 1 | . . . . . . . . . . . . . . 1 . Propulsion 3 | . . . . . 1 . 1 . . . . . . 1 . Utility 12 | . . . . . 3 2 1 . . . . 2 2 . 2 Weapon . | . . . . . . . . . . . . . . . . Parts Attached 337 | 8 8 7 4 2 77 62 40 23 10 23 . 14 28 12 19 Power 29 | 1 . 2 . . 6 4 3 1 . 2 . . 2 3 5 Engine 8 | 1 . 1 . . . 3 2 . . 1 . . . . . Core 15 | . . 1 . . 6 1 1 1 . 1 . . 2 2 . Reactor 6 | . . . . . . . . . . . . . . 1 5 Propulsion 67 | 4 2 2 . . 24 16 4 1 . 6 . 2 4 1 1 Treads 27 | 2 2 2 . . 18 . . . . 2 . . . . 1 Leg 19 | . . . . . 4 15 . . . . . . . . . Wheel 2 | 2 . . . . . . . . . . . . . . . Hover 4 | . . . . . 1 . . . . 1 . . 1 1 . Flight 15 | . . . . . 1 1 4 1 . 3 . 2 3 . . Utility 130 | 1 4 . 2 . 21 14 25 13 4 9 . 7 17 8 5 Device 49 | . . . . . 7 1 9 8 3 4 . 3 8 5 1 Storage 25 | 1 4 . 2 . 4 . 6 . . . . 1 4 2 1 Processor 12 | . . . . . 1 6 3 . . . . 1 1 . . Hackware 12 | . . . . . . . 3 . . 4 . 2 1 1 1 Protection 32 | . . . . . 9 7 4 5 1 1 . . 3 . 2 Artifact . | . . . . . . . . . . . . . . . . Weapon 111 | 2 2 3 2 2 26 28 8 8 6 6 . 5 5 . 8 Energy Gun 29 | 1 . . . . 10 14 2 . . . . . . . 2 Energy Cannon 9 | . . . . . 1 . . . . . . . 3 . 5 Ballistic Gun 41 | 1 2 3 1 2 10 8 4 3 3 2 . 2 . . . Ballistic Cannon 8 | . . . . . 2 2 . 2 2 . . . . . . Launcher 11 | . . . 1 . 1 4 . 2 1 . . 1 . . 1 Special Weapon . | . . . . . . . . . . . . . . . . Impact Weapon . | . . . . . . . . . . . . . . . . Slashing Weapon 12 | . . . . . 2 . 2 1 . 3 . 2 2 . . Piercing Weapon . | . . . . . . . . . . . . . . . . Special Melee Weapon 1 | . . . . . . . . . . 1 . . . . . Unidentified Prototypes 16 | . . . . . 7 4 . . 2 . . . 2 1 . Parts Lost 69 | . . 3 . . 19 12 . 1 . 2 . 9 5 3 15 Power 9 | . . 1 . . 4 1 . . . . . . . 1 2 Propulsion 20 | . . 1 . . 5 1 . 1 . 2 . 3 1 . 6 Utility 23 | . . . . . 5 4 . . . . . 4 4 2 4 Weapon 17 | . . 1 . . 5 6 . . . . . 2 . . 3 Highest Loss Streak 8 | . . 2 . . 5 3 . 1 . 1 . 6 4 3 8 Average Slot Usage (%) 95 | . 97 99 100 100 96 98 99 99 93 93 100 92 83 90 70 Engine 3 | . 14 8 14 14 . 2 . . . . . . . . . Core 4 | . . 4 . . 6 4 5 6 6 5 6 5 5 8 3 Treads 10 | . 9 27 28 28 21 . . . . . . . . . 2 Leg 5 | . . . . . 4 22 . . . . . . . . . Flight 7 | . . . . . . . 26 26 26 20 20 19 18 19 6 Device 5 | . . . . . 7 1 9 8 18 13 6 7 13 15 1 Storage 18 | . 26 28 28 28 26 23 8 6 6 6 6 3 5 6 7 Processor 9 | . . . . . 1 18 12 13 13 13 13 12 15 14 13 Hackware 7 | . . . . . . . 16 20 14 19 26 29 18 14 15 Protection 4 | . . . . . 8 9 3 4 . . . . . . 3 Energy Gun 3 | . 10 . . . 8 6 . . . . . . . . . Ballistic Gun 9 | . 17 28 26 28 8 6 5 2 . . . 1 . . . Slashing Weapon 3 | . . . . . . . 5 8 6 12 13 7 3 9 4 Naked Turns . | . . . . . . . . . . . . . . . . Heaviest Build 134 | 11 55 57 76 73 113 134 89 31 31 40 20 28 40 56 80 Greatest Support 62 | 32 40 40 40 40 62 60 27 27 25 46 22 31 37 37 37 Greatest Overweight (x) 20 | . 2 2 1 1 2 3 3 1 1 1 . 1 1 2 20 Average Overweight (x) . | . . 1 1 1 1 1 . . . . . . . . . Largest Inventory Capacity 28 | 6 18 18 20 20 28 28 28 8 8 8 8 10 10 10 10 Average Capacity 18 | 5 15 18 18 20 27 28 7 8 8 8 8 7 9 10 10 Most Carried 28 | 6 18 18 20 20 28 28 28 8 8 8 8 10 10 10 10 Average Carried 17 | 3 14 17 18 20 25 27 7 7 7 7 8 7 8 9 9 Final Capacity 28 | 6 18 18 20 20 28 28 8 8 8 8 8 4 10 10 10 Final Carried 28 | 6 18 18 20 20 28 28 8 8 8 8 8 4 8 10 7 Class Distribution -------------------- 40% | Hauler-Mutant 18% | Mutant 12% | Scavenger-Mutant 9% | Hacker-Mutant 9% | Hacker-Sprinter Dominant Class ---------------- Mutant | -10/Materials Mutant | -10/Mines Mutant | -10/Exiles Hauler-Mutant | -9/Mines Hauler-Mutant | -8/Materials Hauler-Mutant | -7/Factory Hacker-Sprinter | -6/Factory Commander-Mutant | -6/Extension Commander-Sprinter | -6/Cetus Scavenger-Mutant | -6/Archives Hacker-Sprinter | -6/Hub_04(d) Wizard-Sprinter | -5/Factory Hacker-Mutant | -4/Factory Hacker-Sprinter | -3/Research Hacker-Mutant | -2/Research Resources | -11 -10 -10 -10 -9 -8 -7 -6 -6 -6 -6 -6 -5 -4 -3 -2 ----------- Run | Scr Mat Min Exi Min Mat Fac Fac Ext Cet Arc Hub Fac Fac Res Res Matter Collected 6666 | 228 178 142 20 143 1303 1992 563 733 219 558 . 142 178 75 192 Remotely 11 | . . . . . . . 11 . . . . . . . . Salvage Created 10664 | 108 237 368 . 192 2708 3245 522 1148 43 540 33 937 . 75 508 Parts 510 | 6 25 25 . 18 146 146 14 39 5 31 1 36 . 6 12 Haulers Intercepted 15 | . 1 . . . 5 4 2 1 . . . 2 . . . Recyclers Shooed 22 | . . 1 . . 5 4 3 7 . . . 1 . . 1 Parts Field Recycled . | . . . . . . . . . . . . . . . . Retrieved Matter . | . . . . . . . . . . . . . . . . Parts Self-Destructed . | . . . . . . . . . . . . . . . . Prevented . | . . . . . . . . . . . . . . . . Kills | -11 -10 -10 -10 -9 -8 -7 -6 -6 -6 -6 -6 -5 -4 -3 -2 ------- Run | Scr Mat Min Exi Min Mat Fac Fac Ext Cet Arc Hub Fac Fac Res Res Combat Hostiles Destroyed 145 | . 6 8 . 8 41 51 2 12 1 3 . 6 . . 7 Melee 9 | . . . . . . . . 4 1 . . 4 . . . Guns 94 | . 6 8 . 5 33 36 2 . . 3 . 1 . . . Cannons 14 | . . . . . 3 6 . 2 . . . . . . 3 AOE 25 | . . . . 3 4 8 . 6 . . . 1 . . 3 Classes Destroyed 16 | 2 4 3 . . 4 2 . . . . . 1 . . . Worker 20 | . . 1 . . 3 6 2 . . . . 6 . 1 1 Builder 11 | . 1 . . 1 2 5 . . . . . 2 . . . Tunneler 3 | 1 . 1 . . 1 . . . . . . . . . . Hauler 15 | . 1 . . . 5 4 2 1 . . . 2 . . . Recycler 24 | 1 1 . . . 6 8 1 5 . . . 2 . . . Mechanic 2 | . . . . . . . . . . . . 1 . . 1 Operator 9 | . . . . . 2 . . . . 7 . . . . . Watcher 13 | . 1 . . . 5 1 1 1 1 . 1 . . 2 . Swarmer 35 | . 6 2 . 5 11 7 . 2 1 . . 1 . . . Grunt 62 | . . 4 . 3 18 25 . 6 . . . 3 . . 3 Brawler 3 | . . . . . 1 1 . . . . . . . . 1 Duelist 5 | . . . . . 2 3 . . . . . . . . . Protector 1 | . . . . . . 1 . . . . . . . . . Sentry 21 | . . 2 . . 8 3 1 2 . 3 . 1 . . 1 Hunter 7 | . . . . . 1 3 . . . . . 1 . . 2 Programmer 9 | . . . . . . 8 1 . . . . . . . . Savage 1 | . . . . . . . . 1 . . . . . . . Butcher 2 | . . . . . . . . 1 . 1 . . . . . Best Kill Streak 6 | 2 4 2 . 4 5 5 2 4 1 6 1 6 . 1 5 Combat Bots Only 5 | . 3 2 . 4 4 5 1 4 1 1 . 3 . . 4 Max Kills in Single Turn 4 | 1 2 2 . 3 4 4 1 3 1 1 1 3 . 1 2 Gunslinging 1 | . . 1 . . 1 . . . . . . . . . . Exploded 4 | . . . . 3 3 4 . 2 . . . 1 . . 1 Melee 1 | . . . . . . . . 1 1 . . 1 . . . Uniques/NPCs Destroyed . | . . . . . . . . . . . . . . . . Combat | -11 -10 -10 -10 -9 -8 -7 -6 -6 -6 -6 -6 -5 -4 -3 -2 -------- Run | Scr Mat Min Exi Min Mat Fac Fac Ext Cet Arc Hub Fac Fac Res Res Damage Taken 12782 | . 185 733 . 291 3145 3410 66 615 8 595 26 763 329 320 2296 Core 2086 | . 47 95 . 39 441 463 . 137 8 73 13 180 123 73 394 Absorbed by Shields 155 | . . . . . . . . 79 8 . . . . 68 . Core Remaining (%) 64 | 100 . . . 27 19 33 . . . . 72 82 89 94 . Volleys Fired 753 | 3 28 44 5 28 238 255 21 46 6 27 . 8 . . 44 Largest 2 | 2 2 2 2 2 2 2 2 1 1 2 . 1 . . 1 Hottest 122 | 60 60 40 40 40 122 122 45 57 57 70 . 39 . . 110 Shots Fired 1340 | 6 56 86 7 55 471 475 25 48 6 53 . 8 . . 44 Gun 1212 | 6 56 86 4 54 450 430 25 28 . 53 . 6 . . 14 Cannon 103 | . . . . . 20 39 . 14 5 . . . . . 25 Launcher 25 | . . . 3 1 1 6 . 6 1 . . 2 . . 5 Special . | . . . . . . . . . . . . . . . . Kinetic 940 | 3 43 86 4 54 354 268 22 42 5 53 . 6 . . . Thermal 258 | 3 13 . . . 48 164 3 . . . . . . . 27 Explosive 25 | . . . 3 1 1 6 . 6 1 . . 2 . . 5 Electromagnetic 117 | . . . . . 68 37 . . . . . . . . 12 Robot Hit Streak 33 | 2 4 17 . 8 22 33 6 9 3 8 . 5 . . 8 Robot Miss Streak 9 | 1 3 3 . 3 9 4 1 6 1 3 . 1 . . 6 Penetration Max 1 | . . . . . . 1 . 1 1 1 . 1 . . . Secondary Targets 8 | . . 2 . . 4 2 . . . . . . . . . Max Gunslinging Chain 1 | . . 1 . . 1 1 . . . . . . . . . Shots Hit Robots 991 | 4 26 64 . 38 344 337 21 44 2 47 7 25 . 8 24 Core Hits 466 | 3 14 31 . 16 135 140 13 37 8 20 1 22 . 3 23 Critical Hits 32 | . . 1 . . 4 3 . 8 3 9 . 3 . 1 . Critical Kills 14 | . . . . . 2 1 . 5 1 2 . 2 . 1 . Critical Parts Destroyed 15 | . . 1 . . 2 2 . 3 2 4 . 1 . . . Melee Attacks 159 | . . . . . 2 . 37 15 1 11 27 29 7 25 5 Impact . | . . . . . . . . . . . . . . . . Slashing 159 | . . . . . 2 . 37 15 1 11 27 29 7 25 5 Piercing . | . . . . . . . . . . . . . . . . Sneak Attacks 39 | . . . . . . . 6 6 1 11 1 13 . 1 . Combat Hostiles 3 | . . . . . . . . 1 1 . . 1 . . . Follow-up Attacks 9 | . . . . . . . . 1 . 3 1 2 . 2 . Damage Inflicted 25606 | 42 231 528 . 522 4380 7770 1188 2907 400 2637 355 2269 . 491 1886 Guns 13020 | 42 231 528 . 301 3737 5917 285 325 . 1098 . 153 . . 403 Cannons 2086 | . . . . . 296 682 . 266 109 . . . . . 733 Explosions 4375 | . . . . 221 347 1171 . 1398 195 . . 293 . . 750 Melee 6125 | . . . . . . . 903 918 96 1539 355 1823 . 491 . Ramming . | . . . . . . . . . . . . . . . . Kinetic 9781 | 20 178 528 . 301 2597 3963 243 591 109 1098 . 153 . . . Thermal 4036 | 22 53 . . . 748 2409 42 . . . . . . . 762 Explosive 4255 | . . . . 221 264 1134 . 1398 195 . . 293 . . 750 Electromagnetic 1409 | . . . . . 771 264 . . . . . . . . 374 Impact . | . . . . . . . . . . . . . . . . Slashing 6125 | . . . . . . . 903 918 96 1539 355 1823 . 491 . Piercing . | . . . . . . . . . . . . . . . . Highest Corruption 12 | . . . . . . 7 11 12 12 12 . . 5 . 4 Average Corruption 6 | . . . . . . 5 2 11 12 7 . . 4 . 3 Corruption Purged 12 | . . . . . . . . . . 12 . . . . . Effects 280 | . . . . . . 109 10 69 15 57 . . 16 . 4 Message Errors 47 | . . . . . . 20 3 4 2 12 . . 5 . 1 Matter Fused 55 | . . . . . . 21 . 12 3 14 . . 4 . 1 Heat Flow Errors 14 | . . . . . . 4 . 3 1 4 . . 1 . 1 Energy Discharges 23 | . . . . . . 8 . 6 1 6 . . 1 . 1 Parts Rejected 3 | . . . . . . 1 . 1 . . . . 1 . . Data Loss (minor) 33 | . . . . . . 11 4 9 . 6 . . 3 . . Data Loss (major) 12 | . . . . . . 3 . 3 1 4 . . 1 . . Misfires 14 | . . . . . . 9 1 4 . . . . . . . Alerts 2 | . . . . . . . . . 1 1 . . . . . Misdirections 23 | . . . . . . . 1 16 4 2 . . . . . Targeting Errors 46 | . . . . . . 27 1 9 2 7 . . . . . Weapon Failures 8 | . . . . . . 5 . 2 . 1 . . . . . Overload Shots . | . . . . . . . . . . . . . . . . Overflow Damage 1776 | . . . . . . 29 243 300 . 539 22 455 . 133 55 Projectiles 68 | . . . . . . 21 . 6 . . . . . . 41 Explosions 137 | . . . . . . 8 . 67 . . . 48 . . 14 Melee 1571 | . . . . . . . 243 227 . 539 22 407 . 133 . Knockbacks 23 | . . . . . 12 9 . 2 . . . . . . . Impact . | . . . . . . . . . . . . . . . . Kinetic 18 | . . . . . 8 9 . 1 . . . . . . . Secondary 5 | . . . . . 4 . . 1 . . . . . . . Self-Inflicted Damage 213 | . . . . . . 197 . . 16 . . . . . . Shots 3 | . . . . . . 2 . . 1 . . . . . . Rammed . | . . . . . . . . . . . . . . . . Targets Rammed . | . . . . . . . . . . . . . . . . Kicked . | . . . . . . . . . . . . . . . . Crushed . | . . . . . . . . . . . . . . . . Highest Temperature 467 | 40 40 48 2 26 195 432 53 263 292 247 . . 162 . 467 Average Temperature 61 | 26 24 11 1 6 59 69 11 36 144 42 . . 92 . 185 Received Heat Transfer 2908 | . . 306 . 129 1035 903 9 208 . 27 . 126 21 9 135 Effects 13 | . . . . . . 2 . 3 . . . . . . 8 Shutdowns 2 | . . . . . . . . . . . . . . . 2 Energy Bleed 2 | . . . . . . 1 . . . . . . . . 1 Interference 7 | . . . . . . . . 3 . . . . . . 4 Matter Decay 1 | . . . . . . 1 . . . . . . . . . Damage (minor) 1 | . . . . . . . . . . . . . . . 1 Siege Activations . | . . . . . . . . . . . . . . . . Robots Corrupted 3 | . . . . . 1 1 . . . . . . . . 1 Combat Hostiles 3 | . . . . . 1 1 . . . . . . . . 1 Parts Fried 20 | . . . . . 15 2 . . . . . . . . 3 Impact Corruptions . | . . . . . . . . . . . . . . . . Robots Melted . | . . . . . . . . . . . . . . . . Combat Hostiles . | . . . . . . . . . . . . . . . . Parts Melted 16 | . . . . . 3 12 . . . . . . . . 1 Heat Transferred 7086 | 50 125 . . . 1493 4712 74 . . . . . . . 632 Parts Sabotaged . | . . . . . . . . . . . . . . . . Parts Stolen . | . . . . . . . . . . . . . . . . Parts Stripped . | . . . . . . . . . . . . . . . . Power Chain Reactions 3 | . . . . . 2 1 . . . . . . . . . Missiles Intercepted . | . . . . . . . . . . . . . . . . Alert | -11 -10 -10 -10 -9 -8 -7 -6 -6 -6 -6 -6 -5 -4 -3 -2 ------- Run | Scr Mat Min Exi Min Mat Fac Fac Ext Cet Arc Hub Fac Fac Res Res Peak Influence 1084 | 10 157 153 . 224 510 1084 639 695 663 397 195 434 689 336 355 Average Influence 276 | 4 57 26 . 190 196 517 554 356 551 131 102 241 365 321 241 Maximum Alert Level 3 | . . . . 1 2 3 2 2 2 1 . 2 2 1 1 Low Security (%) 46 | . . . . . . . . . . . . . . . . Level 1 29 | . . . . . . . . . . . . . . . . Level 2 17 | . . . . . . . . . . . . . . . . Level 3 6 | . . . . . . . . . . . . . . . . Level 4 . | . . . . . . . . . . . . . . . . Level 5 . | . . . . . . . . . . . . . . . . High Security . | . . . . . . . . . . . . . . . . Max Security . | . . . . . . . . . . . . . . . . Squads Dispatched 46 | . . . . . 2 20 7 5 . . . 3 6 2 1 Investigation 12 | . . . . . 1 2 2 5 . . . . 2 . . Extermination 11 | . . . . . . 7 2 . . . . . 1 1 . Reinforcement 16 | . . . . . 1 10 . . . . . 2 2 1 . Assault 6 | . . . . . . 1 2 . . . . 1 1 . 1 Garrison 1 | . . . . . . . 1 . . . . . . . . Intercept . | . . . . . . . . . . . . . . . . Construction Impeded 5 | . . . . . . 4 . . . . . 1 . . . Haulers Reinforced 4 | . . . . . . 3 . . . . . 1 . . . Stealth | -11 -10 -10 -10 -9 -8 -7 -6 -6 -6 -6 -6 -5 -4 -3 -2 --------- Run | Scr Mat Min Exi Min Mat Fac Fac Ext Cet Arc Hub Fac Fac Res Res Distress Signals 15 | . . . . . 4 1 . 2 . 1 3 2 1 1 . Communications Jammed 7 | . . . . . . . . . . . . . . 7 . Distress Signals . | . . . . . . . . . . . . . . . . Times Spotted 310 | . 9 11 3 8 58 77 6 33 4 11 13 34 17 14 12 Peak Tracking Total 14 | . 5 3 9 3 5 6 2 6 4 2 7 14 11 6 4 Tactical Retreats 28 | . 1 . . 2 . 6 1 5 . . 1 3 6 2 1 Traps | -11 -10 -10 -10 -9 -8 -7 -6 -6 -6 -6 -6 -5 -4 -3 -2 ------- Run | Scr Mat Min Exi Min Mat Fac Fac Ext Cet Arc Hub Fac Fac Res Res Traps Triggered 5 | . . . . . 1 . 2 2 . . . . . . . Indirectly . | . . . . . . . . . . . . . . . . Trap Hack Attempts . | . . . . . . . . . . . . . . . . Triggered . | . . . . . . . . . . . . . . . . Disarmed 5 | . . . . . 5 . . . . . . . . . . Reprogrammed . | . . . . . . . . . . . . . . . . Reused . | . . . . . . . . . . . . . . . . Traps Extracted . | . . . . . . . . . . . . . . . . Installed . | . . . . . . . . . . . . . . . . Triggered . | . . . . . . . . . . . . . . . . Machines | -11 -10 -10 -10 -9 -8 -7 -6 -6 -6 -6 -6 -5 -4 -3 -2 ---------- Run | Scr Mat Min Exi Min Mat Fac Fac Ext Cet Arc Hub Fac Fac Res Res Machines Disabled 28 | . . . 2 2 3 7 . 6 1 2 1 4 . . . Max in Single Turn 2 | . . . 1 2 1 2 . 1 . 1 1 2 . . . Garrison Access 5 | . . . . . 1 . 1 . . . . 1 1 . 1 Machines Sabotaged . | . . . . . . . . . . . . . . . . Garrisons Compromised . | . . . . . . . . . . . . . . . . Overloaded Fab Kills . | . . . . . . . . . . . . . . . . Fab Network Shutdowns 1 | . . . . . . . . . . . . . 1 . . Hacking | -11 -10 -10 -10 -9 -8 -7 -6 -6 -6 -6 -6 -5 -4 -3 -2 --------- Run | Scr Mat Min Exi Min Mat Fac Fac Ext Cet Arc Hub Fac Fac Res Res Machines Accessed 75 | . 1 . 2 1 10 9 14 10 3 1 4 7 10 2 1 Terminals 56 | . 1 . . 1 9 6 11 10 3 . 4 4 6 1 . Fabricators 9 | . . . . . . 3 1 . . . . 1 3 1 . Repair Stations . | . . . . . . . . . . . . . . . . Recycling Units 1 | . . . . . . . . . . . . 1 . . . Scanalyzers 1 | . . . . . . . 1 . . . . . . . . Garrison Access 5 | . . . . . 1 . 1 . . . . 1 1 . 1 Total Hacks 248 | . 2 . 8 3 28 24 40 53 9 3 11 23 38 4 2 Successful 152 | . 2 . 8 2 15 6 27 36 3 3 8 18 22 1 1 Failed 95 | . . . . 1 13 18 13 16 6 . 3 5 16 3 1 Catastrophic 15 | . . . . 1 3 2 1 2 1 . 1 . 2 2 . Database Lockouts 1 | . . . . . . . . 1 . . . . . . . Manual 120 | . . . 1 3 13 9 13 45 10 . 3 8 13 . 2 Terminals 192 | . 2 . . 3 27 13 30 53 9 . 11 18 24 2 . Fabricators 29 | . . . . . . 11 3 . . . . 2 11 2 . Repair Stations . | . . . . . . . . . . . . . . . . Recycling Units 2 | . . . . . . . . . . . . 2 . . . Scanalyzers 2 | . . . . . . . 2 . . . . . . . . Garrison Access 12 | . . . . . 1 . 5 . . . . 1 3 . 2 Terminal Hacks 109 | . 2 . 8 2 11 4 17 29 3 3 8 10 11 1 . Record 11 | . . . 7 . . . 1 . . 3 . . . . . Part Schematic 13 | . . . . . 1 . 2 4 3 . 1 1 1 . . Robot Schematic 3 | . . . . 2 . . 1 . . . . . . . . Robot Analysis 3 | . . . . . 1 . 1 . . . . 1 . . . Prototype ID Bank 5 | . . . . . 1 . . 3 . . . . 1 . . Level Access Points 3 | . . . . . . . . . . . 1 1 1 . . Branch Access Points 4 | . 1 . . . . . 1 1 . . . 1 . . . Terminal Index 5 | . . . . . 1 . 1 1 . . 1 1 . . . Fabricator Index 3 | . . . . . . . 1 . . . . 1 1 . . Repair Station Index 1 | . . . . . . . . . . . . . 1 . . Alert Level 6 | . . . . . . . . 4 . . 1 . 1 . . Unreport Threat 10 | . . . . . 2 1 . 6 . . . . 1 . . Locate Traps 7 | . 1 . . . 1 . 1 2 . . 1 1 . . . Disarm Traps 1 | . . . . . 1 . . . . . . . . . . Dispatch Records 1 | . . . . . . . . 1 . . . . . . . Patrol Status 1 | . . . . . . . . 1 . . . . . . . Transport Status 1 | . . . . . 1 . . . . . . . . . . Recall Investigation 3 | . . . . . . . . 3 . . . . . . . Recall Extermination 2 | . . . . . . . 1 . . . . . . 1 . Recall Reinforcements 1 | . . . . . . . . . . . . 1 . . . Recall Assault 2 | . . . . . . . 2 . . . . . . . . Hauler Manifests 7 | . . . . . 2 1 . 2 . . 1 1 . . . Registered Components 3 | . . . . . . . 1 . . . 1 . 1 . . Registered Prototypes 1 | . . . . . . . 1 . . . . . . . . Zone Layout 11 | . . . . . . 2 3 1 . . 1 1 3 . . EX-Prototype ID Bank 1 | . . . 1 . . . . . . . . . . . . Fabricator Hacks 11 | . . . . . . 2 1 . . . . 2 6 . . Load Schematic 5 | . . . . . . 1 1 . . . . 1 2 . . Build 6 | . . . . . . 1 . . . . . 1 4 . . Repair Station Hacks . | . . . . . . . . . . . . . . . . Recycling Unit Hacks 2 | . . . . . . . . . . . . 2 . . . Retrieve Matter 1 | . . . . . . . . . . . . 1 . . . Retrieve Components 1 | . . . . . . . . . . . . 1 . . . Scanalyzer 2 | . . . . . . . 2 . . . . . . . . Insert Component 1 | . . . . . . . 1 . . . . . . . . Analyze 1 | . . . . . . . 1 . . . . . . . . Garrison Access Hacks 3 | . . . . . 1 . 1 . . . . 1 . . . Seal Access 3 | . . . . . 1 . 1 . . . . 1 . . . Unauthorized Hacks 63 | . . . . . 9 7 12 14 . . . 6 12 . 3 Terminals 17 | . . . . . 3 . 3 7 . . . 3 1 . . Track 5 | . . . . . 3 . . 1 . . . . 1 . . Assimilate 1 | . . . . . . . . . . . . 1 . . . Botnet 9 | . . . . . . . 2 5 . . . 2 . . . Disrupt 1 | . . . . . . . . 1 . . . . . . . Operators 1 | . . . . . . . 1 . . . . . . . . Fabricators 3 | . . . . . . . . . . . . . 3 . . Prioritize 2 | . . . . . . . . . . . . . 2 . . Siphon 1 | . . . . . . . . . . . . . 1 . . Repair Stations . | . . . . . . . . . . . . . . . . Recycling Units . | . . . . . . . . . . . . . . . . Scanalyzers . | . . . . . . . . . . . . . . . . Garrison Access 5 | . . . . . . . 3 . . . . . 1 . 1 Broadcast 1 | . . . . . . . 1 . . . . . . . . Reprogram 2 | . . . . . . . 1 . . . . . . . 1 Watchers 1 | . . . . . . . 1 . . . . . . . . Jam 1 | . . . . . . . . . . . . . 1 . . Data Cores Recovered . | . . . . . . . . . . . . . . . . Used . | . . . . . . . . . . . . . . . . Hacking Detections 68 | . 1 . . 1 9 9 14 10 3 . 4 6 9 2 . Full Trace Events 10 | . . . . 1 1 2 2 3 . . . . 1 . . Feedback Events 4 | . . . . . . 2 1 1 . . . . . . . Corruption 4 | . . . . . . 2 1 1 . . . . . . . Feedback Blocked . | . . . . . . . . . . . . . . . . Robot Schematics Acquired 3 | . . . . 2 . . 1 . . . . . . . . Robots Built . | . . . . . . . . . . . . . . . . Matter . | . . . . . . . . . . . . . . . . Time . | . . . . . . . . . . . . . . . . Total Robot Build Rating . | . . . . . . . . . . . . . . . . Part Schematics Acquired 14 | . . . . . 1 . 3 4 3 . 1 1 1 . . Parts Built 7 | . . . . . . 2 . . . . . 1 4 . . Matter 813 | . . . . . . 146 . . . . . 285 382 . . Time 372 | . . . . . . 73 . . . . . 76 223 . . Total Part Build Rating 37 | . . . . . . 6 . . . . . 5 26 . . Parts Repaired . | . . . . . . . . . . . . . . . . Time . | . . . . . . . . . . . . . . . . Parts Recycled . | . . . . . . . . . . . . . . . . Recycled Matter . | . . . . . . . . . . . . . . . . Retrieved Matter . | . . . . . . . . . . . . . . . . Retrieved Components . | . . . . . . . . . . . . . . . . Parts Scanalyzed 1 | . . . . . . . 1 . . . . . . . . Part Schematics Acquired 1 | . . . . . . . 1 . . . . . . . . Parts Damaged . | . . . . . . . . . . . . . . . . Bothacking | -11 -10 -10 -10 -9 -8 -7 -6 -6 -6 -6 -6 -5 -4 -3 -2 ------------ Run | Scr Mat Min Exi Min Mat Fac Fac Ext Cet Arc Hub Fac Fac Res Res Used RIF Installer . | . . . . . . . . . . . . . . . . Robots Hacked . | . . . . . . . . . . . . . . . . Non-combat . | . . . . . . . . . . . . . . . . Combat . | . . . . . . . . . . . . . . . . Robot Hacks Applied . | . . . . . . . . . . . . . . . . Relay Couplers Released 1 | . . . . . . . . . . . . . . . 1 Machine Destruction 1 | . . . . . . . . . . . . . . . 1 Robots Rewired 18 | . . . . . . . . 17 . . . 1 . . . Allies Hacked . | . . . . . . . . . . . . . . . . Hacks Repelled . | . . . . . . . . . . . . . . . . Allies | -11 -10 -10 -10 -9 -8 -7 -6 -6 -6 -6 -6 -5 -4 -3 -2 -------- Run | Scr Mat Min Exi Min Mat Fac Fac Ext Cet Arc Hub Fac Fac Res Res Total Allies 32 | . . 2 . . . . 1 22 5 . . 2 . . . Largest Group 18 | . . 2 2 . . . 1 18 17 2 . 2 . . . Highest-Rated Group 948 | . . 45 45 . . . 32 698 948 56 . 59 . . . Highest-Rated Ally 156 | . . 31 31 . . . 32 156 150 31 . 49 . . . Total Orders . | . . . . . . . . . . . . . . . . Ally Attacks 193 | . . 3 . . . . 2 128 43 4 . 13 . . . Total Damage 4092 | . . 61 . . . . 53 2583 803 62 . 530 . . . Kills 42 | . . 2 . . . . 1 23 10 1 . 5 . . . Allies Corrupted . | . . . . . . . . . . . . . . . . Allies Melted . | . . . . . . . . . . . . . . . . Intel | -11 -10 -10 -10 -9 -8 -7 -6 -6 -6 -6 -6 -5 -4 -3 -2 ------- Run | Scr Mat Min Exi Min Mat Fac Fac Ext Cet Arc Hub Fac Fac Res Res Robot Analysis Total 3 | . . . . . 1 . 1 . . . . 1 . . . Derelict Logs Recovered 1 | . . 1 . . . . . . . . . . . . . Drone Launches . | . . . . . . . . . . . . . . . . Drone Recoveries . | . . . . . . . . . . . . . . . . Exploration | -11 -10 -10 -10 -9 -8 -7 -6 -6 -6 -6 -6 -5 -4 -3 -2 ------------- Run | Scr Mat Min Exi Min Mat Fac Fac Ext Cet Arc Hub Fac Fac Res Res Turns Passed 16185 | 97 424 2074 637 414 3134 3359 799 1029 240 1860 237 387 728 311 455 Spaces Moved 10191 | 71 257 1077 342 188 1247 1425 1434 976 215 224 375 712 858 474 316 Core 2 | 1 . . . . . . . . . . . . . . 1 Treads 2753 | 2 43 1077 342 188 981 . . . . 8 . . . . 112 Legs 1691 | . . . . . 266 1425 . . . . . . . . . Wheels 282 | 68 214 . . . . . . . . . . . . . . Hover 81 | . . . . . . . . . . . . 3 59 19 . Flight 5382 | . . . . . . . 1434 976 215 216 375 709 799 455 203 Fastest Speed 26 | 50 100 180 180 180 175 156 27 26 26 26 30 28 29 29 29 Average Speed 100 | 100 119 180 180 180 180 178 27 47 30 55 30 30 36 41 96 Slowest Speed 1050 | 160 200 200 180 180 200 220 240 93 93 180 30 120 102 180 1050 Overloaded Moves . | . . . . . . . . . . . . . . . . Propulsion Burnouts . | . . . . . . . . . . . . . . . . Robots Hopped 21 | . . . . . . . 1 6 . . 6 2 5 . 1 Cave-ins Triggered . | . . . . . . . . . . . . . . . . Exploration Rate (%) 46 | 6 35 99 60 44 84 39 31 86 73 82 35 22 24 11 8 Regions Visited 15 Branch Regions 7 Pre-discovered Areas 2 | . . 2 . . . . . . . . . . . . . Known Exits Taken 10 | . 1 . . . . 1 1 1 1 1 1 1 1 1 . Unknown Exits Taken 5 | 1 . 1 1 1 1 . . . . . . . . . . Scrap Searched 2 | . . 1 . 1 . . . . . . . . . . . Spaces Dug 63 | . . . . . 2 . 25 . . . 11 6 7 7 5 Terrain Destroyed 305 | . . . 21 6 8 80 25 54 17 12 11 11 7 7 46 Melee 63 | . . . . . 2 . 25 . . . 11 6 7 7 5 Projectile 28 | . . . . . . 5 . 7 1 12 . 1 . . 2 AOE 214 | . . . 21 6 6 75 . 47 16 . . 4 . . 39 Actions | -11 -10 -10 -10 -9 -8 -7 -6 -6 -6 -6 -6 -5 -4 -3 -2 --------- Run | Scr Mat Min Exi Min Mat Fac Fac Ext Cet Arc Hub Fac Fac Res Res Total 14707 | 88 329 1145 360 220 1711 1820 1771 1470 379 1889 461 835 1260 556 413 Wait 2835 | . 6 9 . 2 48 10 188 325 139 1591 73 52 338 38 16 Move 10136 | 70 256 1076 341 187 1246 1424 1431 965 214 223 362 707 847 473 314 Hop 19 | . . . . . . . 1 4 . . 6 2 5 . 1 Pick Up 151 | 5 18 4 5 . 44 22 15 2 2 3 . 10 14 2 5 Fast Attach 139 | 7 4 2 . . 23 25 22 4 3 12 . 4 18 8 7 Attach 92 | 1 . 3 1 . 27 17 9 2 1 3 . 7 9 4 8 Detach 33 | 2 . . . . 6 5 1 2 1 2 . 1 7 4 2 Swap 106 | . 4 2 3 2 27 20 9 17 6 8 . 3 1 . 4 Drop 213 | . 13 5 5 1 50 42 37 5 6 12 . 10 14 6 7 Fire 753 | 3 28 44 5 28 238 255 21 46 6 27 . 8 . . 44 Melee 141 | . . . . . 2 . 37 14 1 8 20 26 7 21 5 Ram . | . . . . . . . . . . . . . . . . Kick . | . . . . . . . . . . . . . . . . Crush . | . . . . . . . . . . . . . . . . Escape Stasis 28 | . . . . . . . . 28 . . . . . . . Rewire 61 | . . . . . . . . 56 . . . 5 . . . Trap . | . . . . . . . . . . . . . . . . Miscellaneous . | . . . . . . . . . . . . . . . . Route ------- -11/Scrapyard -10/Materials -10/Mines (discovered 3 exits: [*Mat x2] / *Exi) -10/Exiles -9/Mines -8/Materials (discovered 3 exits: *Fac x3) -7/Factory (discovered 2 exits: *Fac / [*Low]) -6/Factory (discovered 6 exits: *Fac x2 / *Low x2 / *Ext x2) -6/Extension (discovered 3 exits: *Fac x2 / *Cet) -6/Cetus -6/Archives (discovered 3 exits: *Fac / *Hub x2) -6/Hub_04(d) (discovered 4 exits: *Fac x4) -5/Factory (discovered 6 exits: *Fac x4 / Upp x2) -4/Factory (discovered 4 exits: *Res x4) -3/Research -2/Research History --------- Turn | Location | Event 30 | -11/Scrapyard | Discovered new exit (range 15) 98 | -11/Scrapyard | Entered Materials 119 | -10/Materials | Identified exit to Mines 309 | -10/Materials | Build established: Mutant 522 | -10/Materials | Entered Mines 668 | -10/Mines | Discovered new exit (range 9) 1123 | -10/Mines | Learned location of Zion (-7) 1284 | -10/Mines | Core integrity fell below 50% 2093 | -10/Mines | Discovered new exit (range 16) 2209 | -10/Mines | Learned location of Storage (-9) 2582 | -10/Mines | Deemed a non-threat by the Exiles lab entrance 2582 | -10/Mines | Discovered new exit (range 5) 2596 | -10/Mines | Entered Exiles 2596 | -10/Exiles | Accompanied by 2 allies 2626 | -10/Exiles | Led the pair of lost Derelicts to a safe place 2643 | -10/Exiles | Met 8R-AWN 2668 | -10/Exiles | Met EX-HEX 2733 | -10/Exiles | Met EX-BIN 2756 | -10/Exiles | Aligned with FarCom system 2758 | -10/Exiles | Given EX-Vault access code 2821 | -10/Exiles | Opened EX-Vault 2838 | -10/Exiles | Found Skeleton Box 2875 | -10/Exiles | Warned to stay clear of 0b10 Research branches 3097 | -10/Exiles | Discovered new exit (range 14) 3196 | -10/Exiles | Attacked by the Exiles 3233 | -10/Exiles | Left Exiles lab with Skeleton Box 3233 | -10/Exiles | Entered Mines 3277 | -9/Mines | Build established: Hauler-Mutant 3623 | -9/Mines | Discovered new exit (range 8) 3647 | -9/Mines | Entered Materials 3647 | -8/Materials | Evolved 4 slots: Propulsion x1, Utility x3 3888 | -8/Materials | Lost 3 parts (1u2w) 4645 | -8/Materials | Lost 5 parts (1p1n1u2w) 4850 | -8/Materials | Core integrity fell below 50% 5108 | -8/Materials | Discovered new exit (range 9) 5214 | -8/Materials | Build established: Scavenger-Mutant 5447 | -8/Materials | Core integrity fell below 20% 5487 | -8/Materials | Discovered new exit (range 15) 5886 | -8/Materials | Build established: Hauler-Mutant 6140 | -8/Materials | Discovered new exit (range 12) 6781 | -8/Materials | Entered Factory 6781 | -7/Factory | Evolved 2 slots: Utility x2 7210 | -7/Factory | Discovered new exit (range 20) 7498 | -7/Factory | Lost 3 parts (3w) 8971 | -7/Factory | Core integrity fell below 50% 9581 | -7/Factory | First assault squad dispatched 9942 | -7/Factory | Fabricated Adv. Signal Interpreter (x2) 9977 | -7/Factory | Discovered new exit (range 21) 10050 | -7/Factory | Identified exit to Factory 10140 | -7/Factory | Entered another Factory area 10140 | -6/Factory | Evolved 2 slots: Propulsion x1, Utility x1 10323 | -6/Factory | Identified exit to Lower Caves 10323 | -6/Factory | Identified exit to Extension 10363 | -6/Factory | Discovered new exit (range 16) 10490 | -6/Factory | First assault squad dispatched 10632 | -6/Factory | Discovered new exit (range 16) 10709 | -6/Factory | Garrison activated, responded to threat 10906 | -6/Factory | System corruption reached 10% 10939 | -6/Factory | Entered Extension 10939 | -6/Extension | Accompanied by 1 ally 10959 | -6/Extension | Remotely autohacked Sealed Heavy Doors 10960 | -6/Extension | Rescued a captive Derelict 11204 | -6/Extension | Remotely autohacked Sealed Heavy Doors 11215 | -6/Extension | Remotely autohacked Sealed Heavy Doors 11216 | -6/Extension | Rescued a captive Derelict 11222 | -6/Extension | Rescued A7 11314 | -6/Extension | Disrupted transfer network 11410 | -6/Extension | Warlord forces began an assault 11573 | -6/Extension | Remotely autohacked Sealed Heavy Doors 11573 | -6/Extension | Discovered new exit (range 6) 11575 | -6/Extension | Central database locked down 11773 | -6/Extension | Remotely autohacked Sealed Heavy Doors 11773 | -6/Extension | Rescued a captive Derelict 11774 | -6/Extension | Identified exit to Cetus 11777 | -6/Extension | Rescued a captive Derelict 11860 | -6/Extension | Remotely autohacked Sealed Heavy Doors 11861 | -6/Extension | Rescued a captive Derelict 11939 | -6/Extension | Discovered new exit (range 10) 11951 | -6/Extension | Disrupted transfer network 11968 | -6/Extension | Entered Cetus 11968 | -6/Cetus | Accompanied by 17 allies 11973 | -6/Cetus | Acquired a Cetus Manufacturing Module code from A7 11990 | -6/Cetus | Spotted Cetus Guard 11990 | -6/Cetus | Spotted Cetus Guard 11993 | -6/Cetus | Allies destroyed Cetus Guard 11993 | -6/Cetus | Spotted Cetus Guard 11994 | -6/Cetus | Spotted Cetus Guard 11997 | -6/Cetus | Allies destroyed Cetus Guard 11999 | -6/Cetus | Allies destroyed Cetus Guard 12001 | -6/Cetus | Allies destroyed Cetus Guard 12031 | -6/Cetus | Started Cetus Manufacturing Module 12038 | -6/Cetus | Remotely autohacked Sealed Heavy Doors 12056 | -6/Cetus | Manufactured an Enhanced Grunt 12066 | -6/Cetus | Discovered new exit (range 15) 12081 | -6/Cetus | Manufactured an Enhanced Grunt 12106 | -6/Cetus | Manufactured an Enhanced Grunt 12131 | -6/Cetus | Manufactured an Enhanced Grunt 12156 | -6/Cetus | Manufactured an Enhanced Grunt 12207 | -6/Cetus | Identified exit to Archives 12208 | -6/Cetus | Entered Archives 12208 | -6/Archives | Accompanied by 2 allies 12387 | -6/Archives | Discovered new exit (range 16) 12419 | -6/Archives | Discovered new exit (range 15) 12731 | -6/Archives | Build established: Scavenger-Sprinter 13111 | -6/Archives | Build established: Scavenger-Mutant 14063 | -6/Archives | Unable to access archive contents 14064 | -6/Archives | Discovered new exit (range 13) 14068 | -6/Archives | Identified exit to Hub_04(d) 14068 | -6/Archives | Entered Hub_04(d) 14068 | -6/Hub_04(d) | Discovered new exit (range 11) 14107 | -6/Hub_04(d) | Identified exit to Factory 14305 | -6/Hub_04(d) | Entered Factory 14305 | -5/Factory | Evolved 2 slots: Utility x2 14532 | -5/Factory | Identified exit to Upper Caves 14532 | -5/Factory | Identified exit to Factory 14586 | -5/Factory | Fabricated Biomechanical Wings (x1) 14605 | -5/Factory | First assault squad dispatched 14649 | -5/Factory | Lost 6 parts (3n3u) 14692 | -5/Factory | Entered another Factory area 14692 | -4/Factory | Evolved 2 slots: Utility x2 14758 | -4/Factory | Found Prototype Processor 14758 | -4/Factory | Identified Exp. Targeting Computer 14873 | -4/Factory | Identified exit to Research 14890 | -4/Factory | Build established: Hacker-Mutant 14944 | -4/Factory | Fabricated Q-thruster? 15036 | -4/Factory | Lost 4 parts (1n3u) 15162 | -4/Factory | Fabricated Power Sword (x2) 15191 | -4/Factory | Local fabrication network quarantined 15192 | -4/Factory | First assault squad dispatched 15420 | -4/Factory | Entered Research 15420 | -3/Research | Evolved 2 slots: Power x1, Propulsion x1 15556 | -3/Research | Spotted B-86 Titan 15713 | -3/Research | Discovered new exit (range 16) 15731 | -3/Research | Identified exit to Research 15731 | -3/Research | Entered another Research area 15731 | -2/Research | Evolved 2 slots: Utility x2 15757 | -2/Research | Lost 3 parts (1p2u) 15768 | -2/Research | Spotted B-90 Cyclops 15844 | -2/Research | Lost 4 parts (2n1u1w) 16186 | -2/Research | Self-destructed Last Messages --------------- 16168_ Slug penetrates Wall. 16169_ Overheating: System interference. 16169_ HERF Cannon temporarily disabled. 16171_ K-01 Serf collects debris. 16171_ Penetrated by Slug. 16172_ H-88 Terminator destroyed. 16174_ Slug penetrates Subatomic Condenser. 16174_ Critical hit. 16174_ Adv. Medium Treads destroyed. 16174_ K-01 Serf collects debris. 16177_ Penetrated by Slug. 16178_ K-01 Serf collects debris. 16180_ Biomechanical Wings destroyed. 16181_ System corrupted: Energy discharge (-250). 16181_ R-10 Processor collects Unknown Ballistic Gun. 16182_ K-01 Serf collects debris. 16183_ Slug penetrates Subatomic Condenser. 16184_ Slug penetrates K-01 Serf. 16184_ K-01 Serf destroyed. 16184_ Penetrated by Slug. Map ----- +----------------------------------------------------+ | ?????????????????????????????????????????????????? | | ?????????????????????????????????????????????????? | | ?????????????????????????????????????????????????? | | ?????????????????????????????????????????????????? | | ?????????????????????????????????????????????????? | | ?????????????????????????????????????????????????? | | ?????????????????????????????????????????????????? | | ?????????????????????????????????????????????????? | | ??????????? ???????????????????????????????????? | | ?????????# ???????????????????????????????????? | | ?????????# ???????????????????????????????????? | | ?????????# #??????????????????????????????????? | | ?????????# ###########??????????####??????????? | | ?????? ??# ##]] #????# ?? #??????????? | | ?????? ?# ## ] #????# #??????????? | | ??????? # %## * #????# #??????????? | | ???????? # ## #????# """ #??????????? | | ?????????+ ## #????# """ #??????????? | | ?????????# ## #????# """ #??????????? | | ?????????# ## #????# #??????????? | | ?????????# # #????? #??????????? | | ?????????# ## #??????? ????????????? | | ?????????# ######+#############+########??????? | | ?????????# R #??????? | | ?????????# h [ u #??????? | | ???###???# h *=%! @ #??????? | | #### ##### """ %[% #??????? | | # # ## """ !################# #??????? | | # # """ # ] #?????# #??????? | | # ##### # #?????# #??????? | | ! # #?????# #??????? | | # #?????# #??????? | | = # #?????# ######## | | % # #?????# # | | ######+#### # ##?##?# # | | # # # "### ## # | | ## # " #"#+###########"# # | | ?# """ # "" # | | ?# """ # G # | | ?# """ # " + | | ?# # !" # | | ?# # ###################### | | ?# + #?????????########???# | | ## # ########? #???# | | ############## " #? #???# | | #????????????# # # ! #???######## | | #????????????#### # #??????????? | | #???????????????# + #??????????? | | #????????????#######+### # #??????????? | | #????????????# # # #??????????? | +----------------------------------------------------+ Best States ------------- Heat Dissipation 50 Energy Generation 41 Energy Capacity 1040 Matter Stores 300 Matter Capacity 300 Sight Range 22 Robot Scan Range 20 Terrain Scan Range 24 Terrain Scan Density 10 ECM Strength 3 Jamming Range 16 Power Amplification 20 Armor Coverage 825 Resistance: KI 30 Resistance: EM 25 Power Shielding 66 Utility Shielding 66 Phase Shifting 5 Evasion (%) 74 Targeting Accuracy 16 Melee Accuracy 8 Armor Integrity Analysis 50 Recoil Reduction 5 Kinecelleration 30 Offensive Hacking 48 Defensive Hacking 24 Item Schematics ----------------- Adv. Signal Interpreter | -8/Materials | Hacked Adv. Melee Analysis Suite | -6/Factory | Hacked Cld. VTOL Module | -6/Factory | Scanalyzed Imp. Hacking Suite | -6/Factory | Hacked Imp. System Shield | -6/Extension | Hacked Exp. Propulsion Shielding | -6/Extension | Hacked Exp. Sensor Array | -6/Extension | Hacked Coil Gun | -6/Extension | Hacked Power Sword | -6/Cetus | Hacked Microactuators | -6/Cetus | Hacked Lrg. Storage Unit | -6/Cetus | Hacked Biomechanical Wings | -6/Hub_04(d) | Hacked Adv. Hacking Suite | -5/Factory | Hacked Q-thruster | -4/Factory | Hacked Robot Schematics ------------------ O-16 Technician | -9/Mines | Hacked I-25 Savior | -9/Mines | Hacked H-66 Slayer | -6/Factory | Hacked Fabricated ------------ Adv. Signal Interpreter | x2 | -7/Factory Biomechanical Wings | x1 | -5/Factory Q-thruster | x2 | -4/Factory Power Sword | x2 | -4/Factory Alien Tech Used ----------------- None Achievements -------------- None Challenges ------------ None Game ------ Seed GravitonWaveWarhead Manual? 0 Play Time 02:34:17 Cumulative 265.8 hours Start 2019.11.12 @ 00:36:20 End 2019.11.12 @ 03:18:16 Sessions 1 Manual Loads 0 Difficulty Rogue Special Mode None Game No. 206 Rogue 206 Adventurer 0 Explorer 0 Win Type - Total 3 Types 3/0/0/0/0/0/0 Lore% 74 Gallery% 78 Achievement% 54 Wizard Run 0 Options --------- ASCII 0 Keyboard 0 Movement Mouse Keybinds 1 Fullscreen 2 Font 24/Smallcaps Map View 76x50 Tactical HUD 1 Map Filters NONE Filters NONE Steam 1 RUN: 403e0c68-d26d-4028-9756-51d02268e585